fUSD/lending_fUSD_20240624
["ID","MTS","AMOUNT","RATE_DAILY","PERIOD"]
[330294522,1719234750656,-415.40692488,0.00047374,30]
[330294523,1719234750681,-180.14148016,0.00047374,30]
[330294524,1719234750704,-150.0,0.00047391,30]
[330294525,1719234750730,-3000.0,0.00047397,120]
[330294526,1719234750753,-3000.0,0.00047397,120]
[330294527,1719234750778,-3000.0,0.00047397,120]
[330294528,1719234750803,-3000.0,0.00047397,120]
[330294529,1719234750826,-3000.0,0.00047397,120]
[330294530,1719234750850,-3000.0,0.00047397,120]
[330294531,1719234750873,-1290.29070871,0.00047397,120]
[330294532,1719234750898,-1517.51,0.00047397,120]
[330294533,1719234750921,-150.0,0.00047406,30]
[330294534,1719234750947,-415.40692488,0.00047427,30]
[330294535,1719234750973,-180.14148016,0.00047427,30]
[330294536,1719234750997,-150.0,0.00047436,120]
[330294537,1719234751020,-150.0,0.00047445,30]
[330294538,1719234751044,-415.40692488,0.0004748,30]
[330294539,1719234751068,-180.14148016,0.0004748,30]
[330294540,1719234751092,-150.0,0.00047485,120]
[330294541,1719234751116,-150.0,0.00047499,30]
[330294542,1719234751141,-429452.04940242,0.000475,30]
[330294543,1719234751166,-150.0,0.00047531,120]
[330294544,1719234751190,-415.40692488,0.00047532,30]
[330294545,1719234751214,-180.14148016,0.00047532,30]
[330294546,1719234751238,-150.0,0.00047553,30]
[330294547,1719234751262,-415.40692488,0.00047585,30]
[330294548,1719234751286,-180.14148016,0.00047585,30]
[330294549,1719234751310,-150.0,0.00047592,30]
[330294550,1719234751335,-150.0,0.00047608,30]
[330294551,1719234751358,-150.0,0.00047629,30]
[330294552,1719234751382,-415.40692488,0.00047637,30]
[330294553,1719234751408,-180.14148016,0.00047637,30]
[330294554,1719234751432,-150.0,0.00047662,30]
[330294555,1719234751457,-500.0,0.0004767,30]
[330294556,1719234751481,-500.0,0.0004767,30]
[330294557,1719234751506,-1517.51,0.00047671,120]
[330294558,1719234751531,-150.0,0.0004768,120]
[330294559,1719234751556,-415.40692488,0.0004769,30]
[330294560,1719234751585,-180.14148016,0.0004769,30]
[330294561,1719234751611,-150.0,0.00047716,30]
[330294562,1719234751637,-415.40692488,0.00047742,30]
[330294563,1719234751663,-180.14148016,0.00047742,30]
[330294564,1719234751687,-150.0,0.0004777,30]
[330294565,1719234751714,-150.0,0.00047778,30]
[330294566,1719234751738,-415.40692488,0.00047795,30]
[330294567,1719234751763,-180.14148016,0.00047795,30]
[330294568,1719234751790,-150.0,0.00047825,30]
[330294569,1719234751815,-172.15555556,0.00047836,120]
[330294570,1719234751839,-415.40692488,0.00047848,30]
[330294571,1719234751864,-180.14148016,0.00047848,30]
[330294572,1719234751888,-151.0,0.00047863,120]
[330294573,1719234751913,-150.0,0.00047879,30]
[330294574,1719234751937,-150.0,0.0004789,30]
[330294575,1719234751963,-1002.15445788,0.00047891,60]
[330294576,1719234751986,-255.92352732,0.000479,120]
[330294577,1719234752011,-415.40692488,0.000479,30]
[330294578,1719234752035,-180.14148016,0.000479,30]
[330294579,1719234752059,-150.0,0.00047933,30]
[330294580,1719234752083,-200.0,0.00047945,100]
[330294581,1719234752109,-1517.51,0.00047945,120]
[330294582,1719234752141,-415.40692488,0.00047953,30]
[330294583,1719234752172,-180.14148016,0.00047953,30]
[330294584,1719234752196,-150.0,0.00047964,30]
[330294585,1719234752222,-2449.11735713,0.0004798,120]
[330294586,1719234752246,-150.0,0.00047987,30]
[330294587,1719234752272,-50000.0,0.00048,38]
[330294588,1719234752297,-764.42913054,0.00048,120]
[330294589,1719234752321,-766.65390308,0.00048,120]
[330294590,1719234752345,-685.6781699,0.00048,120]
[330294591,1719234752369,-496.6541317,0.00048,120]
[330294592,1719234752393,-1000000.0,0.00048,80]
[330294593,1719234752416,-550.0,0.00048,120]
[330294594,1719234752439,-2500.0,0.00048,120]
[330294595,1719234752466,-1000.0,0.00048,120]
[330294596,1719234752490,-2168.0,0.00048,30]
[330294597,1719234752518,-415.40692488,0.00048005,30]
[330294598,1719234752542,-180.14148016,0.00048005,30]
[330294599,1719234752568,-150.0,0.00048042,30]
[330294600,1719234752591,-415.40692488,0.00048058,30]
[330294601,1719234752618,-180.14148016,0.00048058,30]
[330294602,1719234752643,-150.0,0.00048096,30]
[330294603,1719234752669,-415.40692488,0.00048111,30]
[330294604,1719234752693,-180.14148016,0.00048111,30]
[330294605,1719234752717,-150.0,0.0004815,30]
[330294606,1719234752740,-150.0,0.0004815,30]
[330294607,1719234752764,-150.0,0.0004815,30]
[330294608,1719234752790,-150.0,0.0004815,30]
[330294609,1719234752814,-415.40692488,0.00048163,30]
[330294610,1719234752838,-180.14148016,0.00048163,30]
[330294611,1719234752862,-150.0,0.00048204,30]
[330294612,1719234752887,-415.40692488,0.00048216,30]
[330294613,1719234752911,-180.14148016,0.00048216,30]
[330294614,1719234752934,-400.0,0.00048218,30]
[330294615,1719234752957,-200.0,0.00048218,30]
[330294616,1719234752982,-1517.51,0.00048219,120]
[330294617,1719234753006,-150.0,0.00048258,30]
[330294618,1719234753031,-415.40692488,0.00048268,30]
[330294619,1719234753056,-180.14148016,0.00048268,30]
[330294620,1719234753212,-150.0,0.0004831,120]
[330294621,1719234753236,-150.0,0.00048313,30]
[330294622,1719234753261,-415.40692488,0.00048321,30]
[330294623,1719234753285,-180.14148016,0.00048321,30]
[330294624,1719234753308,-150.0,0.00048336,30]
[330294625,1719234753333,-150.0,0.00048367,30]
[330294626,1719234753356,-415.40692488,0.00048373,30]
[330294627,1719234753379,-180.14148016,0.00048373,30]
[330294628,1719234753403,-150.0,0.0004841,30]
[330294629,1719234753426,-150.0,0.00048421,30]
[330294630,1719234753451,-415.40692488,0.00048426,30]
[330294631,1719234753476,-180.14148016,0.00048426,30]
[330294632,1719234753500,-150.0,0.00048475,30]
[330294633,1719234753523,-415.40692488,0.00048479,30]
[330294634,1719234753548,-180.14148016,0.00048479,30]
[330294635,1719234753578,-1517.51,0.00048493,120]
[330294636,1719234753604,-1000000.0,0.000485,85]
[330294637,1719234753629,-150.0,0.00048522,30]
[330294638,1719234753656,-16163.174,0.00048528,120]
[330294639,1719234753680,-16163.174,0.00048528,120]
[330294640,1719234753703,-192.80201555,0.00048528,120]
[330294641,1719234753728,-283.57377157,0.00048528,120]
[330294642,1719234753751,-16163.174,0.00048528,120]
[330294643,1719234753776,-16163.175,0.00048528,120]
[330294644,1719234753803,-16163.174,0.00048528,120]
[330294645,1719234753828,-150.0,0.0004853,30]
[330294646,1719234753851,-415.40692488,0.00048531,30]
[330294647,1719234753876,-180.14148016,0.00048531,30]
[330294648,1719234753901,-172.15555556,0.00048548,120]
[330294649,1719234753925,-415.40692488,0.00048584,30]
[330294650,1719234753949,-150.0,0.00048584,30]
[330294651,1719234753973,-150.0,0.00048584,30]
[330294652,1719234753997,-180.14148016,0.00048584,30]
[330294653,1719234754021,-150.0,0.00048584,30]
[330294654,1719234754046,-314.57658848,0.00048612,30]
[330294655,1719234754074,-314.57658848,0.00048632,30]
[330294656,1719234754098,-415.40692488,0.00048636,30]
[330294657,1719234754123,-180.14148016,0.00048636,30]
[330294658,1719234754148,-150.0,0.00048638,30]
[330294659,1719234754173,-314.57658848,0.00048655,30]
[330294660,1719234754198,-296.86001777,0.00048662,30]
[330294661,1719234754224,-302.45873029,0.0004867,40]
[330294662,1719234754247,-355.72825129,0.0004867,40]
[330294663,1719234754270,-611.11999404,0.0004867,40]
[330294664,1719234754295,-984.05154666,0.0004867,40]
[330294665,1719234754321,-150.0,0.0004867,30]
[330294666,1719234754346,-296.86001777,0.00048675,30]
[330294667,1719234754372,-415.40692488,0.00048689,30]
[330294668,1719234754397,-180.14148016,0.00048689,30]
[330294669,1719234754422,-1698564.73564681,0.0004869,120]
[330294671,1719234764524,-667.77792935,0.00026398,30]
[330294672,1719234764596,-1404.49121719,0.0003,60]
[330294673,1719234764639,-687.108449,0.000409,120]
[330294674,1719234764669,-687.10844886,0.000409,120]
[330294675,1719234764700,-424.819,0.00048548,30]
[330294676,1719234764724,-301435.26435319,0.0004869,120]
[330294677,1719234764749,-1356.59661806,0.0004869,120]
[330294678,1719234764774,-150.0,0.00048692,30]
[330294679,1719234764801,-296.86001777,0.00048695,30]
[330294680,1719234764828,-296.86001777,0.00048697,30]
[330294681,1719234764852,-312.57799877,0.000487,120]
[330294682,1719234764877,-314.57658848,0.00048707,30]
[330294683,1719234764901,-150.0,0.00048708,30]
[330294684,1719234764926,-296.86001777,0.00048727,30]
[330294685,1719234764950,-296.86001777,0.00048733,30]
[330294686,1719234764974,-415.40692488,0.00048741,30]
[330294687,1719234765004,-180.14148016,0.00048741,30]
[330294688,1719234765028,-314.57658848,0.00048743,30]
[330294689,1719234765054,-314.57658848,0.00048744,30]
[330294690,1719234765079,-150.0,0.00048746,30]
[330294691,1719234765104,-1517.51,0.00048767,120]
[330294692,1719234765128,-296.86001777,0.00048776,30]
[330294693,1719234765153,-314.57658848,0.0004878,30]
[330294694,1719234765178,-296.86001777,0.00048782,30]
[330294695,1719234765202,-415.40692488,0.00048794,30]
[330294696,1719234765228,-180.14148016,0.00048794,30]
[330294697,1719234765275,-314.57658848,0.00048796,30]
[330294698,1719234765300,-2500.0,0.000488,90]
[330294699,1719234765324,-1103.68386169,0.000488,120]
[330294700,1719234765347,-368.61016682,0.000488,120]
[330294701,1719234765371,-100210.23210683,0.000488,30]
[330294702,1719234765395,-150.0,0.00048801,30]
[330294703,1719234765420,-415.40692488,0.00048847,30]
[330294704,1719234765443,-180.14148016,0.00048847,30]
[330294705,1719234765467,-150.0,0.00048855,30]
[330294706,1719234765491,-150.0,0.00048894,30]
[330294707,1719234765515,-415.40692488,0.00048899,30]
[330294708,1719234765540,-180.14148016,0.00048899,30]
[330294709,1719234765568,-187.42517971,0.000489,120]
[330294710,1719234765593,-150.0,0.00048909,30]
[330294711,1719234765618,-150.0,0.00048931,30]
[330294712,1719234765644,-415.40692488,0.00048952,30]
[330294713,1719234765668,-180.14148016,0.00048952,30]
[330294714,1719234765692,-375.715617,0.00048957,30]
[330294715,1719234765717,-150.0,0.00048963,30]
[330294716,1719234765741,-151.0,0.00048986,120]
[330294717,1719234765767,-50000.0,0.00049,39]
[330294718,1719234765791,-1000.0,0.00049,30]
[330294719,1719234765816,-734.33180319,0.00049,30]
[330294720,1719234766009,-608.19116019,0.00049,120]
[330294721,1719234766039,-3000.0,0.00049,120]
[330294722,1719234766064,-2500.0,0.00049,120]
[330294723,1719234766089,-1000000.0,0.00049,90]
[330294724,1719234766113,-47590.44752839,0.00049,120]
[330294725,1719234766139,-415.40692488,0.00049004,30]
[330294726,1719234766166,-180.14148016,0.00049004,30]
[330294727,1719234766193,-150.0,0.00049006,120]
[330294728,1719234766219,-150.0,0.00049018,30]
[330294729,1719234766246,-150.0,0.00049026,120]
[330294730,1719234766279,-1517.51,0.00049041,120]
[330294731,1719234766304,-415.40692488,0.00049057,30]
[330294732,1719234766329,-180.14148016,0.00049057,30]
[330294733,1719234766354,-150.0,0.00049072,30]
[330294734,1719234766378,-150.0,0.00049079,30]
[330294735,1719234766402,-415.40692488,0.0004911,30]
[330294736,1719234766428,-180.14148016,0.0004911,30]
[330294737,1719234766452,-150.0,0.00049125,120]
[330294738,1719234766476,-150.0,0.00049126,30]
[330294739,1719234766501,-415.40692488,0.00049162,30]
[330294740,1719234766526,-180.14148016,0.00049162,30]
[330294741,1719234766550,-150.0,0.0004918,30]
[330294742,1719234766578,-150.0,0.00049191,30]
[330294743,1719234766603,-415.40692488,0.00049215,30]
[330294744,1719234766632,-180.14148016,0.00049215,30]
[330294745,1719234766661,-150.0,0.00049234,30]
[330294746,1719234766687,-172.15555556,0.0004926,120]
[330294747,1719234766712,-150.0,0.00049265,30]
[330294748,1719234766736,-415.40692488,0.00049267,30]
[330294749,1719234766762,-180.14148016,0.00049267,30]
[330294750,1719234766787,-150.0,0.00049289,30]
[330294751,1719234766816,-500.0,0.00049315,30]
[330294752,1719234766841,-838.41,0.00049315,120]
[330294753,1719234766866,-838.41,0.00049315,120]
[330294754,1719234766891,-838.41,0.00049315,120]
[330294755,1719234766916,-838.41,0.00049315,120]
[330294756,1719234766943,-838.41,0.00049315,120]
[330294757,1719234766967,-838.41,0.00049315,120]
[330294758,1719234766992,-838.41,0.00049315,120]
[330294759,1719234767017,-838.41,0.00049315,120]
[330294760,1719234767043,-838.41,0.00049315,120]
[330294761,1719234767068,-838.41,0.00049315,120]
[330294762,1719234767095,-838.41,0.00049315,120]
[330294763,1719234767121,-838.41,0.00049315,120]
[330294764,1719234767148,-838.41,0.00049315,120]
[330294765,1719234767174,-838.41,0.00049315,120]
[330294766,1719234767200,-838.41,0.00049315,120]
[330294767,1719234767226,-838.41,0.00049315,120]
[330294768,1719234767252,-838.41,0.00049315,120]
[330294769,1719234767279,-838.41,0.00049315,120]
[330294770,1719234767304,-838.41,0.00049315,120]
[330294771,1719234767330,-838.41,0.00049315,120]
[330294772,1719234767356,-838.41,0.00049315,120]
[330294773,1719234767380,-838.41,0.00049315,120]
[330294774,1719234767405,-838.41,0.00049315,120]
[330294775,1719234767430,-838.53443449,0.00049315,120]
[330294776,1719234767455,-1517.51,0.00049315,120]
[330294777,1719234767479,-200.0,0.00049315,60]
[330294778,1719234767741,216.73285312,0.00049315,30]
[330294779,1719234767830,208.49982804,0.00049315,30]
[330294780,1719234768035,687.10844886,0.000409,120]
[330294781,1719234768549,35406.99,0.00048689,120]
[330294782,1719234771655,687.10844886,0.000409,120]
[330294783,1719234773047,150.0,0.00048689,30]
[330294784,1719234776832,687.10844886,0.000409,120]
[330294786,1719234781743,687.10844886,0.000409,120]
[330294787,1719234785238,150.0,0.000409,30]
[330294788,1719234786776,687.10844886,0.000409,120]
[330294803,1719234926729,-334.5742,0.000138,2]
[330294846,1719235334532,-563.44,0.00015703,2]
[330294847,1719235334559,-1955.32380575,0.00015852,2]
[330294848,1719235334584,-3541.23619425,0.00015853,2]
[330294895,1719235786233,-150.0,0.00027397,30]
[330294896,1719235786263,-200.0,0.00027397,60]
[330294897,1719235786290,-150.0,0.00027534,30]
[330294898,1719235786316,-150.0,0.00027671,30]
[330294899,1719235786343,-150.0,0.00027808,30]
[330294900,1719235786370,-150.0,0.00027945,30]
[330294901,1719235786397,-150.0,0.00028082,30]
[330294902,1719235786427,-150.0,0.00028219,30]
[330294903,1719235786454,-150.0,0.00028356,30]
[330294904,1719235786482,-150.0,0.00028493,30]
[330294905,1719235786508,-150.0,0.0002863,30]
[330294906,1719235786540,-150.0,0.00028657,120]
[330294907,1719235786568,-150.0,0.00028767,30]
[330294908,1719235786596,-150.0,0.00028904,30]
[330294909,1719235786622,-150.0,0.00029041,30]
[330294910,1719235786648,-150.0,0.00029178,30]
[330294911,1719235786678,-150.0,0.00029315,30]
[330294912,1719235786709,-150.0,0.00029452,30]
[330294913,1719235786734,-150.0,0.00029589,30]
[330294914,1719235786760,-150.0,0.00029726,30]
[330294915,1719235786794,-228.30350931,0.00029863,30]
[330294916,1719235786821,-285.83997765,0.0003,30]
[330294917,1719235786846,-465.0,0.0003,120]
[330294918,1719235786871,-200.0,0.00030137,60]
[330294919,1719235786896,-375.0,0.00030713,120]
[330294920,1719235786927,-150.0,0.00031992,120]
[330294921,1719235786955,-150.0,0.0003227,120]
[330294922,1719235786978,-262.31871861,0.00032393,40]
[330294923,1719235787005,-375.0,0.00032465,120]
[330294924,1719235787032,-159.78,0.000327,31]
[330294925,1719235787056,-159.78,0.000327,31]
[330294926,1719235787082,-159.78,0.000327,31]
[330294927,1719235787107,-159.78,0.000327,31]
[330294928,1719235787133,-159.78,0.000327,31]
[330294929,1719235787162,-535.72546164,0.00032876,30]
[330294930,1719235787187,-200.0,0.00032877,60]
[330294931,1719235787210,-4000.0,0.00032877,30]
[330294932,1719235787235,-159.78,0.000329,31]
[330294933,1719235787260,-159.78,0.000329,31]
[330294934,1719235787286,-159.78,0.000331,31]
[330294935,1719235787311,-159.78,0.000331,31]
[330294936,1719235787336,-1637.54,0.00033151,120]
[330294937,1719235787362,-1836.04,0.00033151,120]
[330294938,1719235787386,-1404.49121719,0.00033204,60]
[330294939,1719235787414,-150.0,0.00033295,120]
[330294940,1719235787442,-159.78,0.000333,31]
[330294941,1719235787468,-159.78,0.000333,31]
[330294942,1719235787494,-159.78,0.000335,31]
[330294943,1719235787521,-159.78,0.000335,31]
[330294944,1719235787546,-1270.90182978,0.00033752,30]
[330294945,1719235787571,-375.0,0.00034217,120]
[330294946,1719235787597,-652.45940549,0.00035,30]
[330294947,1719235787622,-200.50557575,0.00035,120]
[330294948,1719235787649,-2644.77,0.00035616,90]
[330294949,1719235787675,-2644.77,0.00035616,90]
[330294950,1719235787700,-2644.77,0.00035616,90]
[330294951,1719235787725,-2644.77,0.00035616,90]
[330294952,1719235787749,-2644.77,0.00035616,90]
[330294953,1719235787774,-2644.77,0.00035616,90]
[330294954,1719235787798,-2644.77,0.00035616,90]
[330294955,1719235787822,-2644.77,0.00035616,90]
[330294956,1719235787846,-2644.77,0.00035616,90]
[330294957,1719235787870,-2644.77,0.00035616,90]
[330294958,1719235787894,-2644.77,0.00035616,90]
[330294959,1719235787922,-2644.77,0.00035616,90]
[330294960,1719235787947,-2644.77,0.00035616,90]
[330294961,1719235787974,-2644.77,0.00035616,90]
[330294962,1719235787999,-2644.77,0.00035616,90]
[330294963,1719235788025,-2644.77,0.00035616,90]
[330294964,1719235788051,-2644.77,0.00035616,90]
[330294965,1719235788075,-2644.77,0.00035616,90]
[330294966,1719235788101,-2644.77,0.00035616,90]
[330294967,1719235788127,-2644.77,0.00035616,90]
[330294968,1719235788153,-2644.77,0.00035616,90]
[330294969,1719235788180,-2644.77,0.00035616,90]
[330294970,1719235788206,-2644.77,0.00035616,90]
[330294971,1719235788231,-2644.8996392,0.00035616,90]
[330294972,1719235788256,-200.0,0.00035616,60]
[330294973,1719235788282,-375.0,0.00035969,120]
[330294974,1719235788310,-1000.0,0.00038,120]
[330294975,1719235788337,-362.95687671,0.00038355,90]
[330294976,1719235788362,-1178.69292167,0.00038355,30]
[330294977,1719235788389,-200.0,0.00038356,60]
[330294978,1719235788418,-674.91957754,0.000384,33]
[330294979,1719235788447,-150.0,0.0003955,120]
[330294980,1719235788474,-150.0,0.00039568,120]
[330294981,1719235788500,-2011.46,0.0004,30]
[330294982,1719235788525,-2500.0,0.0004,120]
[330294983,1719235788551,-299.87383845,0.0004,60]
[330294984,1719235788576,-384.65903954,0.0004,30]
[330294985,1719235788602,-200.0,0.0004,120]
[330294986,1719235788628,-1000.0,0.0004,120]
[330294987,1719235788653,-175.13346,0.00040088,30]
[330294988,1719235788682,-175.13346,0.00040288,30]
[330294989,1719235788707,-175.13346,0.00040488,30]
[330294990,1719235788732,-3000.0,0.000405,120]
[330294991,1719235788756,-175.13346,0.00040688,30]
[330294992,1719235788780,-1335.345944,0.000408,30]
[330294993,1719235788804,-1000.0,0.000409,30]
[330294994,1719235788829,-520.52988529,0.000409,30]
[330294995,1719235788854,-2222.68180083,0.000409,30]
[330294996,1719235788879,-487.14706347,0.000409,30]
[330294997,1719235788903,-1150.83770424,0.000409,120]
[330294998,1719235788934,-741.09554127,0.000409,120]
[330294999,1719235788960,-741.09554127,0.000409,120]
[330295000,1719235788986,-741.09554127,0.000409,120]
[330295001,1719235789011,-2547.70340605,0.00041,30]
[330295002,1719235789036,-175.13346,0.00041088,30]
[330295003,1719235789061,-1000.0,0.00041095,120]
[330295004,1719235789086,-500.0,0.00041095,120]
[330295005,1719235789111,-500.0,0.00041095,120]
[330295006,1719235789143,-506.21312771,0.00041095,120]
[330295007,1719235789172,-510.0,0.00041095,120]
[330295008,1719235789200,-200.0,0.00041096,60]
[330295009,1719235789226,-175.13346,0.00041288,30]
[330295010,1719235789252,-152.0,0.00041318,31]
[330295011,1719235789277,-510.0,0.00041369,120]
[330295012,1719235789303,-175.13346,0.00041488,30]
[330295013,1719235789328,-510.0,0.00041643,120]
[330295014,1719235789357,-175.13346,0.00041688,30]
[330295015,1719235789383,-392.30596212,0.000418,60]
[330295016,1719235789414,-152.0,0.00041829,31]
[330295017,1719235789442,-150.0,0.00041836,120]
[330295018,1719235789468,-510.0,0.00041917,120]
[330295019,1719235789495,-2500.0,0.00042,120]
[330295020,1719235789521,-150.0,0.00042,30]
[330295021,1719235789547,-217.50803936,0.00042191,120]
[330295022,1719235789574,-150.0,0.00042213,120]
[330295023,1719235789600,-152.0,0.0004234,31]
[330295024,1719235789627,-152.0,0.00042851,31]
[330295025,1719235789653,-1530.58742842,0.00043,30]
[330295026,1719235789680,-2500.0,0.00043,120]
[330295027,1719235789705,-293.8865469,0.00043,120]
[330295028,1719235789731,-227.76677356,0.00043098,120]
[330295029,1719235789757,-152.0,0.00043363,31]
[330295030,1719235789782,-500.0,0.0004356,30]
[330295031,1719235789807,-2000.0,0.00043781,30]
[330295032,1719235789832,-500.0,0.00043835,30]
[330295033,1719235789857,-508.43,0.00043835,120]
[330295034,1719235789882,-508.43,0.00043835,120]
[330295035,1719235789912,-508.43,0.00043835,120]
[330295036,1719235789940,-508.43,0.00043835,120]
[330295037,1719235789966,-508.43,0.00043835,120]
[330295038,1719235789992,-508.43,0.00043835,120]
[330295039,1719235790018,-508.43,0.00043835,120]
[330295040,1719235790044,-508.43,0.00043835,120]
[330295041,1719235790070,-508.43,0.00043835,120]
[330295042,1719235790096,-508.43,0.00043835,120]
[330295043,1719235790121,-508.43,0.00043835,120]
[330295044,1719235790148,-508.43,0.00043835,120]
[330295045,1719235790175,-508.43,0.00043835,120]
[330295046,1719235790201,-508.43,0.00043835,120]
[330295047,1719235790226,-508.43,0.00043835,120]
[330295048,1719235790252,-508.43,0.00043835,120]
[330295049,1719235790278,-508.43,0.00043835,120]
[330295050,1719235790304,-508.43,0.00043835,120]
[330295051,1719235790330,-508.43,0.00043835,120]
[330295052,1719235790357,-508.43,0.00043835,120]
[330295053,1719235790600,-508.43,0.00043835,120]
[330295054,1719235790625,-508.43,0.00043835,120]
[330295055,1719235790651,-508.43,0.00043835,120]
[330295056,1719235790678,-508.45518242,0.00043835,120]
[330295057,1719235790702,-500.0,0.00043835,120]
[330295058,1719235790726,-2512.7,0.00043835,120]
[330295059,1719235790751,-2512.7,0.00043835,120]
[330295060,1719235790776,-2512.7,0.00043835,120]
[330295061,1719235790800,-2512.7,0.00043835,120]
[330295062,1719235790824,-2512.7,0.00043835,120]
[330295063,1719235790849,-2512.7,0.00043835,120]
[330295064,1719235790874,-2512.7,0.00043835,120]
[330295065,1719235790899,-2512.7,0.00043835,120]
[330295066,1719235790928,-2512.7,0.00043835,120]
[330295067,1719235790952,-2512.7,0.00043835,120]
[330295068,1719235790979,-2512.7,0.00043835,120]
[330295069,1719235791005,-2512.7,0.00043835,120]
[330295070,1719235791031,-2512.7,0.00043835,120]
[330295071,1719235791055,-2512.7,0.00043835,120]
[330295072,1719235791080,-2512.7,0.00043835,120]
[330295073,1719235791105,-2512.7,0.00043835,120]
[330295074,1719235791130,-2512.7,0.00043835,120]
[330295075,1719235791160,-2512.7,0.00043835,120]
[330295076,1719235791188,-2512.7,0.00043835,120]
[330295077,1719235791216,-2512.7,0.00043835,120]
[330295078,1719235791242,-2512.7,0.00043835,120]
[330295079,1719235791267,-2512.7,0.00043835,120]
[330295080,1719235791293,-2512.7,0.00043835,120]
[330295081,1719235791318,-2512.76,0.00043835,120]
[330295082,1719235791344,-1327.82,0.00043835,120]
[330295083,1719235791369,-200.0,0.00043836,60]
[330295084,1719235791394,-152.0,0.00043874,31]
[330295085,1719235791422,-216.72235666,0.0004388,120]
[330295086,1719235791451,-500.0,0.0004389,30]
[330295087,1719235791476,-500.0,0.0004389,30]
[330295088,1719235791500,-500.0,0.0004389,30]
[330295089,1719235791527,-500.0,0.0004389,30]
[330295090,1719235791551,-500.0,0.0004389,30]
[330295091,1719235791576,-500.0,0.0004389,30]
[330295092,1719235791602,-500.0,0.0004389,30]
[330295093,1719235791626,-500.0,0.0004389,30]
[330295094,1719235791659,-500.0,0.0004389,30]
[330295095,1719235791684,-500.0,0.0004389,30]
[330295096,1719235791709,-500.0,0.0004389,30]
[330295097,1719235791733,-500.0,0.0004389,30]
[330295098,1719235791757,-500.0,0.0004389,30]
[330295099,1719235791782,-500.0,0.0004389,30]
[330295100,1719235791806,-500.0,0.0004389,30]
[330295101,1719235791831,-500.0,0.0004389,30]
[330295102,1719235791856,-500.0,0.0004389,30]
[330295103,1719235791880,-500.0,0.0004389,30]
[330295104,1719235791905,-500.0,0.0004389,30]
[330295105,1719235791937,-500.0,0.0004389,30]
[330295106,1719235791961,-500.0,0.0004389,30]
[330295107,1719235791985,-500.0,0.0004389,30]
[330295108,1719235792012,-500.0,0.0004389,30]
[330295109,1719235792036,-500.0,0.0004389,30]
[330295110,1719235792060,-500.0,0.0004389,30]
[330295111,1719235792084,-500.0,0.0004389,30]
[330295112,1719235792107,-500.0,0.0004389,30]
[330295113,1719235792131,-500.0,0.0004389,30]
[330295114,1719235792160,-500.0,0.0004389,30]
[330295115,1719235792184,-500.0,0.0004389,30]
[330295116,1719235792209,-500.0,0.0004389,30]
[330295117,1719235792234,-500.0,0.0004389,30]
[330295118,1719235792258,-500.0,0.0004389,30]
[330295119,1719235792282,-500.0,0.0004389,30]
[330295120,1719235792306,-500.0,0.0004389,30]
[330295121,1719235792330,-500.0,0.0004389,30]
[330295122,1719235792396,-500.0,0.0004389,30]
[330295123,1719235792424,-500.0,0.0004389,30]
[330295124,1719235792449,-610.01192036,0.0004389,30]
[330295125,1719235792474,-500.0,0.0004389,30]